Workbook

Sheet Toan 10
C2: Ma trận đề kiểm tra môn Toán khối 10
C3: Kì kiểm tra HKII - Năm học: 2020 - 2021
A5: STT | B5: Nội dung kiến thức | C5: Đơn vị kiến thức (bài học hoặc một phần kiến thức của bài học) | D5: Phân loại theo thang nhận thức | AB5: Tổng điểm | AD5: Tỉ lệ (%) tương ứng với thời lượng dạy đơn vị kiến thức | AE5: Thời lượng giảng dạy đơn vị kiến thức (Tiết)
D6: Nhận biết | J6: Thông hiểu | P6: Vận dụng | V6: Vận dụng cao
D7: CHTL | E7: ĐỘ KHÓ | F7: CÂU | G7: CHTN | H7: ĐỘ KHÓ | I7: CÂU | J7: CHTL | K7: ĐỘ KHÓ | L7: CÂU | M7: CHTN | N7: ĐỘ KHÓ | O7: CÂU | P7: CHTL | Q7: ĐỘ KHÓ | R7: CÂU | S7: CHTN | T7: ĐỘ KHÓ | U7: CÂU | V7: CHTL | W7: ĐỘ KHÓ | X7: CÂU | Y7: CHTN | Z7: ĐỘ KHÓ | AA7: CÂU | AB7: CHTL | AC7: CHTN
A8: 1 | B8: Bất phương trình | C8: Giải bất phương trình tích thương các biểu thức | J8: 0.75 | K8: TB | L8: 1a | AB8: =D8+J8+P8+V8 -> 0.75 | AC8: =G8+M8+S8+Y8 -> 0 | AD8: =AE8/$AE$20 -> 7% | AE8: 1
A9: 2 | C9: Giải bất phương trình chứa trị và căn | J9: 0.75 | K9: TB | L9: 1b | AB9: =D9+J9+P9+V9 -> 0.75 | AC9: =G9+M9+S9+Y9 -> 0 | AD9: 13% | AE9: 2
A10: 3 | B10: Lượng giác | C10: Tính giá trị lượng giác | D10: 1 | E10: D | F10: 2a | AB10: =D10+J10+P10+V10 -> 1 | AC10: =G10+M10+S10+Y10 -> 0 | AD10: 13% | AE10: 2
A11: 4 | C11: Rút gọn biểu thức | P11: 1 | Q11: TĐK | R11: 2b | AB11: 1 | AC11: 0 | AD11: 13% | AE11: 2
A12: 5 | C12: Chứng minh đẳng thức lượng giác | P12: 1 | Q12: TĐK | R12: 2c | AB12: 1 | AC12: 0 | AD12: 13% | AE12: 2
A13: 6 | B13: Phương trình đường thẳng. Góc và khoảng cách | C13: Tính góc giữa hai đường thẳng | D13: 0.5 | E13: D | F13: 3a | AB13: 0.5 | AC13: 0 | AD13: 13% | AE13: 2
A14: 7 | C14: Viết phương trình tham số của đường thẳng | D14: 1 | E14: D | F14: 3b
A15: 8 | C15: Viết phương trình tổng của đường thẳng | D15: 0.75 | E15: D | F15: 3c | AB15: 0.75 | AC15: 0 | AD15: =AE15/$AE$20 -> 13% | AE15: 2
A16: 9 | B16: Phương trình đường tròn và tiếp tuyến | C16: Viết phương trình đường tròn | D16: 0.75 | E16: D | F16: 3d | AB16: 0.75 | AC16: 0 | AD16: =AE16/$AE$20 -> 7% | AE16: 1
A17: 10 | C17: Viết phương trình tiếp tuyến | J17: 1 | K17: TB | L17: 4a | AB17: 1 | AC17: 0 | AD17: =AE17/$AE$20 -> 7% | AE17: 1
A18: 11 | C18: Viết phương trình cát tuyến | V18: 1 | W18: K | X18: 4b
A19: 12 | B19: Hệ thức lượng trong tam giác | C19: Tính độ dài cạnh (bài toán thực tế) | J19: 0.5 | K19: TB | L19: 5 | AB19: 0.5 | AC19: 0 | AD19: =AE19/$AE$20 -> 7% | AE19: 1
A20: Tổng điểm | D20: =SUM(D$8:D$19) -> 4 | G20: =SUM(G$9:G$19) -> 0 | J20: =SUM(J$8:J$19) -> 3 | M20: =SUM(M$9:M$19) -> 0 | P20: =SUM(P$8:P$19) -> 2 | S20: =SUM(S$9:S$19) -> 0 | V20: =SUM(V$8:V$19) -> 1 | Y20: =SUM(Y$9:Y$19) -> 0 | AB20: =SUM(AB$8:AB$19) -> 8 | AC20: =SUM(AC$9:AC$19) -> 0 | AD20: =SUM(AD$9:AD$19) -> 100% | AE20: =SUM(AE$9:AE$19) -> 15
A21: Tỉ lệ mức độ nhận biết (Quy định) | D21: 40% | J21: 30% | P21: 20% | V21: 10%
A22: Tỉ lệ độ khó (Quy định) | D22: 40% D | J22: 30%TB | P22: 20%TĐK | V22: 10%K
D23: Điểm | E23: SL | G23: Điểm | H23: SL | J23: Điểm | K23: SL | M23: Điểm | N23: SL | P23: Điểm | Q23: SL | S23: Điểm | T23: SL | V23: Điểm | W23: SL | Y23: Điểm | Z23: SL | AB23: Tổng điểm | AC23: Số lượng | AD23: Tỷ lệ | AF23: Tỏng điểm | AG23: Số lượng | AH23: Tỷ lệ
C24: Dễ (D) | D24: =SUMIF(E$9:E$19,"D",D$9:D$19) -> 4 | E24: =COUNTIF(E$9:E$19,"D") -> 5 | G24: =SUMIF(H$9:H$19,"D",G$9:G$19) -> 0 | H24: =COUNTIF(H$9:H$19,"D") -> 0 | J24: =SUMIF(K$9:K$19,"D",J$9:J$19) -> 0 | K24: =COUNTIF(K$9:K$19,"D") -> 0 | M24: =SUMIF(N$9:N$19,"D",M$9:M$19) -> 0 | N24: =COUNTIF(N$9:N$19,"D") -> 0 | P24: =SUMIF(Q$9:Q$19,"D",P$9:P$19) -> 0 | Q24: =COUNTIF(Q$9:Q$19,"D") -> 0 | S24: =SUMIF(T$9:T$19,"D",S$9:S$19) -> 0 | T24: =COUNTIF(T$9:T$19,"D") -> 0 | V24: =SUMIF(W$9:W$19,"D",V$9:V$19) -> 0 | W24: =COUNTIF(W$9:W$19,"D") -> 0 | Y24: =SUMIF(Z$9:Z$19,"D",Y$9:Y$19) -> 0 | Z24: =COUNTIF(Z$9:Z$19,"D") -> 0 | AB24: =D24+G24+J24+M24+P24+S24+V24+Y24 -> 4 | AC24: =E24+H24+K24+N24+Q24+T24+W24+Z24 -> 5 | AD24: =AB24/10 -> 40.00% | AE24: Nhận biết | AF24: =SUM(D24:D27,G24:G27) -> 4 | AG24: =SUM(E24:E27, H24:H27) -> 5 | AH24: =AF24/10 -> 40.00%
C25: Trung bình (TB) | D25: =SUMIF(E$9:E$19,"TB",D$9:D$19) -> 0 | E25: =COUNTIF(E$9:E$19,"TB") -> 0 | G25: =SUMIF(H$9:H$19,"TB",G$9:G$19) -> 0 | H25: =COUNTIF(H$9:H$19,"TB") -> 0 | J25: =SUMIF(K$9:K$19,"TB",J$9:J$19) -> 2.25 | K25: =COUNTIF(K$9:K$19,"TB") -> 3 | M25: =SUMIF(N$9:N$19,"TB",M$9:M$19) -> 0 | N25: =COUNTIF(N$9:N$19,"TB") -> 0 | P25: =SUMIF(Q$9:Q$19,"TB",P$9:P$19) -> 0 | Q25: =COUNTIF(Q$9:Q$19,"TB") -> 0 | S25: =SUMIF(T$9:T$19,"TB",S$9:S$19) -> 0 | T25: =COUNTIF(T$9:T$19,"TB") -> 0 | V25: =SUMIF(W$9:W$19,"TB",V$9:V$19) -> 0 | W25: =COUNTIF(W$9:W$19,"TB") -> 0 | Y25: =SUMIF(Z$9:Z$19,"TB",Y$9:Y$19) -> 0 | Z25: =COUNTIF(Z$9:Z$19,"TB") -> 0 | AB25: =D25+G25+J25+M25+P25+S25+V25+Y25 -> 2.25 | AC25: 3 | AD25: =AB25/10 -> 22.50% | AE25: Thông hiểu | AF25: =SUM(J24:J27,M24:M27) -> 2.25 | AG25: =SUM(K24:K27,N24:N27) -> 3 | AH25: =AF25/10 -> 22.50%
C26: Tương đối khó (TDK) | D26: =SUMIF(E$9:E$19,"TĐK",D$9:D$19) -> 0 | E26: =COUNTIF(E$9:E$19,"TĐK") -> 0 | G26: =SUMIF(H$9:H$19,"TĐK",G$9:G$19) -> 0 | H26: =COUNTIF(H$9:H$19,"TĐK") -> 0 | J26: =SUMIF(K$9:K$19,"TĐK",J$9:J$19) -> 0 | K26: =COUNTIF(K$9:K$19,"TĐK") -> 0 | M26: =SUMIF(N$9:N$19,"TĐK",M$9:M$19) -> 0 | N26: =COUNTIF(N$9:N$19,"TĐK") -> 0 | P26: =SUMIF(Q$9:Q$19,"TĐK",P$9:P$19) -> 2 | Q26: =COUNTIF(Q$9:Q$19,"TĐK") -> 2 | S26: =SUMIF(T$9:T$19,"TĐK",S$9:S$19) -> 0 | T26: =COUNTIF(T$9:T$19,"TĐK") -> 0 | V26: =SUMIF(W$9:W$19,"TĐK",V$9:V$19) -> 0 | W26: =COUNTIF(W$9:W$19,"TĐK") -> 0 | Y26: =SUMIF(Z$9:Z$19,"TĐK",Y$9:Y$19) -> 0 | Z26: =COUNTIF(Z$9:Z$19,"TĐK") -> 0 | AB26: 2 | AC26: 2 | AD26: 20.00% | AE26: Vận dụng | AF26: =SUM(P24:P27, S24:S27) -> 2 | AG26: =SUM(Q24:Q27, T24:T27) -> 2 | AH26: 20.00%
C27: Khó (K) | D27: =SUMIF(E$9:E$19,"K",D$9:D$19) -> 0 | E27: =COUNTIF(E$9:E$19,"K") -> 0 | G27: =SUMIF(H$9:H$19,"K",G$9:G$19) -> 0 | H27: =COUNTIF(H$9:H$19,"K") -> 0 | J27: =SUMIF(K$9:K$19,"K",J$9:J$19) -> 0 | K27: =COUNTIF(K$9:K$19,"K") -> 0 | M27: =SUMIF(N$9:N$19,"K",M$9:M$19) -> 0 | N27: =COUNTIF(N$9:N$19,"K") -> 0 | P27: =SUMIF(Q$9:Q$19,"K",P$9:P$19) -> 0 | Q27: =COUNTIF(Q$9:Q$19,"K") -> 0 | S27: =SUMIF(T$9:T$19,"K",S$9:S$19) -> 0 | T27: =COUNTIF(T$9:T$19,"K") -> 0 | V27: =SUMIF(W$9:W$19,"K",V$9:V$19) -> 1 | W27: =COUNTIF(W$9:W$19,"K") -> 1 | Y27: =SUMIF(Z$9:Z$19,"K",Y$9:Y$19) -> 0 | Z27: =COUNTIF(Z$9:Z$19,"K") -> 0 | AB27: 1 | AC27: 1 | AD27: 10.00% | AE27: Vận dụng cao | AF27: =SUM(V24:V27,Y24:Y27) -> 1 | AG27: =SUM(W24:W27,Z24:Z27) -> 1 | AH27: 10.00%
K29: Tỷ lệ độ khó | T29: Tỷ lệ Mức độ hiểu
J30: Dễ (D) | K30: =AD24 -> 40.00% | S30: Nhận biết | T30: =AH24 -> 40.00%
J31: Trung bình (TB) | K31: =AD25 -> 22.50% | S31: Thông hiểu | T31: =AH25 -> 22.50%
J32: Tương đối khó (TDK) | K32: 20.00% | S32: Vận dụng | T32: 20.00%
J33: Khó (K) | K33: 10.00% | S33: Vận dụng cao | T33: 10.00%
C35: 1- Độ khó (hoặc độ dễ): Công thức để tính độ khó (độ dễ) : Số học sinh làm đúng (đạt từ 90% với câu hỏi tự luận) P = ----------------------------- --------------------------------------------- x 100% Tổng số học sinh được kiểm tra Thang phân loại Độ khó (độ dễ) qui ước như sau : - Câu dễ: 70 đến 100 % học sinh trả lời đúng . - Câu tương đối khó (trung bình): 30 đến 70 % học sinh trả lời đúng . - Câu khó: 0 đến 30 % học sinh trả lời đúng . 2- Độ phân biệt: Phân chia học sinh thàn h 3 nhóm với tỉ lệ tương ứng như sau: - Nhóm HS Giỏi&Khá: 27% - Nhóm HS TB: 46% - Nhóm HS Yếu&Kém: 27% Công thức để tính độ phân biệt (dùng cho các câu hỏi trắc nghiệm): D = (Tỉ lệ học sinh Giỏi&Khá làm đúng - Tỉ lệ học sinh Yếu&kém làm đúng) Thang phân loại Độ phân biệt qui ước như sau : - D ≤ 0,19: độ phân biệt quá thấp, không sử để phân biệt, phân loại học sinh được. - 0,20 < D < 0,39: độ phân biệt trung bình, chất lượng câu hỏi tạm được - D ≥ 0,40: độ phân biệt cao, chất lượng câu hỏi cao | N35: THỐNG KÊ TỈ LỆ CÁC MỨC ĐỘ KHÓ CỦA ĐỀ

Sheet Toan 11
C2: Ma trận đề kiểm tra môn Toán khối 11
C3: Kì kiểm tra HK2 - Năm học: 2020 - 2021
A5: STT | B5: Nội dung kiến thức | C5: Đơn vị kiến thức (bài học hoặc một phần kiến thức của bài học) | D5: Phân loại theo thang nhận thức | AB5: Tổng điểm | AD5: Tỉ lệ (%) tương ứng với thời lượng dạy đơn vị kiến thức | AE5: Thời lượng giảng dạy đơn vị kiến thức (Tiết)
D6: Nhận biết | J6: Thông hiểu | P6: Vận dụng | V6: Vận dụng cao
D7: CHTL | E7: ĐỘ KHÓ | F7: CÂU | G7: CHTN | H7: ĐỘ KHÓ | I7: CÂU | J7: CHTL | K7: ĐỘ KHÓ | L7: CÂU | M7: CHTN | N7: ĐỘ KHÓ | O7: CÂU | P7: CHTL | Q7: ĐỘ KHÓ | R7: CÂU | S7: CHTN | T7: ĐỘ KHÓ | U7: CÂU | V7: CHTL | W7: ĐỘ KHÓ | X7: CÂU | Y7: CHTN | Z7: ĐỘ KHÓ | AA7: CÂU | AB7: CHTL | AC7: CHTN
A8: 1 | B8: Cấp số cộng Cấp số nhân | C8: Tìm số hạng thứ k khi biết số hạng đầu và công sai | D8: 0.5 | E8: D | F8: 1a | AB8: =D8+J8+P8+V8 -> 0.5 | AC8: =G8+M8+S8+Y8 -> 0 | AD8: =AE8/$AE$18 -> 9% | AE8: 3
A9: 2 | C9: Tính tổng của CSN với 2 số hạng cho trước | D9: 0.5 | E9: D | F9: 1b | AB9: =D9+J9+P9+V9 -> 0.5 | AC9: =G9+M9+S9+Y9 -> 0 | AD9: 9% | AE9: 3
A10: 3 | B10: Giới hạn | C10: Giới hạn dãy số | D10: 1 | E10: D | F10: 2a | AB10: =D10+J10+P10+V10 -> 1 | AC10: =G10+M10+S10+Y10 -> 0 | AD10: 26% | AE10: 9
A11: 4 | C11: Giới hạn hàm số | D11: 0.5 | E11: TB | F11: 3a | J11: 1 | K11: TB | L11: 2b | AB11: 1.5 | AC11: 0 | AD11: 11% | AE11: 4
A12: 5 | B12: Hàm số liên tục | C12: Tìm điều kiện để hàm số liên tục trên R | J12: 1 | K12: TB | L12: 3b | AB12: 1 | AC12: 0 | AD12: 17% | AE12: 6
A13: 6 | C13: CM pt có nghiệm trên khoảng cho trước dựa vào tính liên tục | D13: 0.5 | E13: D | F13: 4a | P13: 1 | Q13: TĐK | R13: 4b | AB13: 1.5 | AC13: 0 | AD13: 11% | AE13: 4
A14: 7 | B14: Tính đạo hàm | C14: Tính đạo hàm hàm đa thức | D14: 0.5 | E14: D | F14: 5a | AB14: 0.5
A15: 8 | C15: Tính đạo hàm hàm phân thức | J15: 0.5 | K15: D | L15: 5b | AB15: 0.5 | AC15: 0 | AD15: =AE15/$AE$18 -> 17% | AE15: 6
A16: 9 | B16: Quan hệ vuông góc giữa đường và mặt | C16: CM đường vuông góc với mặt, mặt vuông góc mặt | D16: 0.5 | E16: D | F16: 6a | J16: 0.5 | K16: TB | L16: 6a
A17: 10 | C17: Tìm góc giữa 2 mặt | P17: 1 | Q17: TĐK | R17: 6b | V17: 1 | W17: K | X17: 6c
A18: Tổng điểm | D18: =SUM(D$8:D$17) -> 4 | G18: =SUM(G$8:G$17) -> 0 | J18: =SUM(J$8:J$17) -> 3 | M18: =SUM(M$8:M$17) -> 0 | P18: =SUM(P$8:P$17) -> 2 | S18: =SUM(S$8:S$17) -> 0 | V18: =SUM(V$8:V$17) -> 1 | Y18: =SUM(Y$8:Y$17) -> 0 | AB18: =SUM(AB$8:AB$17) -> 7 | AC18: =SUM(AC$8:AC$17) -> 0 | AD18: =SUM(AD$8:AD$17) -> 100% | AE18: =SUM(AE$8:AE$17) -> 35
A19: Tỉ lệ mức độ nhận biết (Quy định) | D19: 40% | J19: 30% | P19: 20% | V19: 10%
A20: Tỉ lệ độ khó (Quy định) | D20: 40% D | J20: 30%TB | P20: 20%TĐK | V20: 10%K
D21: Điểm | E21: SL | G21: Điểm | H21: SL | J21: Điểm | K21: SL | M21: Điểm | N21: SL | P21: Điểm | Q21: SL | S21: Điểm | T21: SL | V21: Điểm | W21: SL | Y21: Điểm | Z21: SL | AB21: Tổng điểm | AC21: Số lượng | AD21: Tỷ lệ | AF21: Tỏng điểm | AG21: Số lượng | AH21: Tỷ lệ
C22: Dễ (D) | D22: =SUMIF(E$8:E$17,"D",D$8:D$17) -> 3.5 | E22: =COUNTIF(E$8:E$17,"D") -> 6 | G22: =SUMIF(H$8:H$17,"D",G$8:G$17) -> 0 | H22: =COUNTIF(H$8:H$17,"D") -> 0 | J22: =SUMIF(K$8:K$17,"D",J$8:J$17) -> 0.5 | K22: =COUNTIF(K$8:K$17,"D") -> 1 | M22: =SUMIF(N$8:N$17,"D",M$8:M$17) -> 0 | N22: =COUNTIF(N$8:N$17,"D") -> 0 | P22: =SUMIF(Q$8:Q$17,"D",P$8:P$17) -> 0 | Q22: =COUNTIF(Q$8:Q$17,"D") -> 0 | S22: =SUMIF(T$8:T$17,"D",S$8:S$17) -> 0 | T22: =COUNTIF(T$8:T$17,"D") -> 0 | V22: =SUMIF(W$8:W$17,"D",V$8:V$17) -> 0 | W22: =COUNTIF(W$8:W$17,"D") -> 0 | Y22: =SUMIF(Z$8:Z$17,"D",Y$8:Y$17) -> 0 | Z22: =COUNTIF(Z$8:Z$17,"D") -> 0 | AB22: =D22+G22+J22+M22+P22+S22+V22+Y22 -> 4 | AC22: =E22+H22+K22+N22+Q22+T22+W22+Z22 -> 7 | AD22: =AB22/10 -> 40.00% | AE22: Nhận biết | AF22: =SUM(D22:D25,G22:G25) -> 4 | AG22: =SUM(E22:E25, H22:H25) -> 7 | AH22: =AF22/10 -> 40.00%
C23: Trung bình (TB) | D23: =SUMIF(E$8:E$17,"TB",D$8:D$17) -> 0.5 | E23: =COUNTIF(E$8:E$17,"TB") -> 1 | G23: =SUMIF(H$8:H$17,"TB",G$8:G$17) -> 0 | H23: =COUNTIF(H$8:H$17,"TB") -> 0 | J23: =SUMIF(K$8:K$17,"TB",J$8:J$17) -> 2.5 | K23: =COUNTIF(K$8:K$17,"TB") -> 3 | M23: =SUMIF(N$8:N$17,"TB",M$8:M$17) -> 0 | N23: =COUNTIF(N$8:N$17,"TB") -> 0 | P23: =SUMIF(Q$8:Q$17,"TB",P$8:P$17) -> 0 | Q23: =COUNTIF(Q$8:Q$17,"TB") -> 0 | S23: =SUMIF(T$8:T$17,"TB",S$8:S$17) -> 0 | T23: =COUNTIF(T$8:T$17,"TB") -> 0 | V23: =SUMIF(W$8:W$17,"TB",V$8:V$17) -> 0 | W23: =COUNTIF(W$8:W$17,"TB") -> 0 | Y23: =SUMIF(Z$8:Z$17,"TB",Y$8:Y$17) -> 0 | Z23: =COUNTIF(Z$8:Z$17,"TB") -> 0 | AB23: =D23+G23+J23+M23+P23+S23+V23+Y23 -> 3 | AC23: =E23+H23+K23+N23+Q23+T23+W23+Z23 -> 4 | AD23: =AB23/10 -> 30.00% | AE23: Thông hiểu | AF23: =SUM(J22:J25,M22:M25) -> 3 | AG23: =SUM(K22:K25,N22:N25) -> 4 | AH23: =AF23/10 -> 30.00%
C24: Tương đối khó (TDK) | D24: =SUMIF(E$8:E$17,"TĐK",D$8:D$17) -> 0 | E24: =COUNTIF(E$8:E$17,"TĐK") -> 0 | G24: =SUMIF(H$8:H$17,"TĐK",G$8:G$17) -> 0 | H24: =COUNTIF(H$8:H$17,"TĐK") -> 0 | J24: =SUMIF(K$8:K$17,"TĐK",J$8:J$17) -> 0 | K24: =COUNTIF(K$8:K$17,"TĐK") -> 0 | M24: =SUMIF(N$8:N$17,"TĐK",M$8:M$17) -> 0 | N24: =COUNTIF(N$8:N$17,"TĐK") -> 0 | P24: =SUMIF(Q$8:Q$17,"TĐK",P$8:P$17) -> 2 | Q24: =COUNTIF(Q$8:Q$17,"TĐK") -> 2 | S24: =SUMIF(T$8:T$17,"TĐK",S$8:S$17) -> 0 | T24: =COUNTIF(T$8:T$17,"TĐK") -> 0 | V24: =SUMIF(W$8:W$17,"TĐK",V$8:V$17) -> 0 | W24: =COUNTIF(W$8:W$17,"TĐK") -> 0 | Y24: =SUMIF(Z$8:Z$17,"TĐK",Y$8:Y$17) -> 0 | Z24: =COUNTIF(Z$8:Z$17,"TĐK") -> 0 | AB24: 2 | AC24: 2 | AD24: 20.00% | AE24: Vận dụng | AF24: =SUM(P22:P25, S22:S25) -> 2 | AG24: =SUM(Q22:Q25, T22:T25) -> 2 | AH24: 20.00%
C25: Khó (K) | D25: =SUMIF(E$8:E$17,"K",D$8:D$17) -> 0 | E25: =COUNTIF(E$8:E$17,"K") -> 0 | G25: =SUMIF(H$8:H$17,"K",G$8:G$17) -> 0 | H25: =COUNTIF(H$8:H$17,"K") -> 0 | J25: =SUMIF(K$8:K$17,"K",J$8:J$17) -> 0 | K25: =COUNTIF(K$8:K$17,"K") -> 0 | M25: =SUMIF(N$8:N$17,"K",M$8:M$17) -> 0 | N25: =COUNTIF(N$8:N$17,"K") -> 0 | P25: =SUMIF(Q$8:Q$17,"K",P$8:P$17) -> 0 | Q25: =COUNTIF(Q$8:Q$17,"K") -> 0 | S25: =SUMIF(T$8:T$17,"K",S$8:S$17) -> 0 | T25: =COUNTIF(T$8:T$17,"K") -> 0 | V25: =SUMIF(W$8:W$17,"K",V$8:V$17) -> 1 | W25: =COUNTIF(W$8:W$17,"K") -> 1 | Y25: =SUMIF(Z$8:Z$17,"K",Y$8:Y$17) -> 0 | Z25: =COUNTIF(Z$8:Z$17,"K") -> 0 | AB25: 1 | AC25: 1 | AD25: 10.00% | AE25: Vận dụng cao | AF25: =SUM(V22:V25,Y22:Y25) -> 1 | AG25: =SUM(W22:W25,Z22:Z25) -> 1 | AH25: 10.00%
K27: Tỷ lệ độ khó | T27: Tỷ lệ Mức độ hiểu
J28: Dễ (D) | K28: =AD22 -> 40.00% | S28: Nhận biết | T28: =AH22 -> 40.00%
J29: Trung bình (TB) | K29: =AD23 -> 30.00% | S29: Thông hiểu | T29: =AH23 -> 30.00%
J30: Tương đối khó (TDK) | K30: 20.00% | S30: Vận dụng | T30: 20.00%
J31: Khó (K) | K31: 10.00% | S31: Vận dụng cao | T31: 10.00%
C33: 1- Độ khó (hoặc độ dễ): Công thức để tính độ khó (độ dễ) : Số học sinh làm đúng (đạt từ 90% với câu hỏi tự luận) P = ----------------------------- --------------------------------------------- x 100% Tổng số học sinh được kiểm tra Thang phân loại Độ khó (độ dễ) qui ước như sau : - Câu dễ: 70 đến 100 % học sinh trả lời đúng . - Câu tương đối khó (trung bình): 30 đến 70 % học sinh trả lời đúng . - Câu khó: 0 đến 30 % học sinh trả lời đúng . 2- Độ phân biệt: Phân chia học sinh thàn h 3 nhóm với tỉ lệ tương ứng như sau: - Nhóm HS Giỏi&Khá: 27% - Nhóm HS TB: 46% - Nhóm HS Yếu&Kém: 27% Công thức để tính độ phân biệt (dùng cho các câu hỏi trắc nghiệm): D = (Tỉ lệ học sinh Giỏi&Khá làm đúng - Tỉ lệ học sinh Yếu&kém làm đúng) Thang phân loại Độ phân biệt qui ước như sau : - D ≤ 0,19: độ phân biệt quá thấp, không sử để phân biệt, phân loại học sinh được. - 0,20 < D < 0,39: độ phân biệt trung bình, chất lượng câu hỏi tạm được - D ≥ 0,40: độ phân biệt cao, chất lượng câu hỏi cao | N33: THỐNG KÊ TỈ LỆ CÁC MỨC ĐỘ KHÓ CỦA ĐỀ

Sheet Toan 12
C2: Ma trận đề kiểm tra môn TOÁN khối 12
C3: Kì kiểm tra HK2 - Năm học: 2020 - 2021
A5: STT | B5: Nội dung kiến thức | C5: Đơn vị kiến thức (bài học hoặc một phần kiến thức của bài học) | D5: Phân loại theo thang nhận thức | AB5: Tổng điểm | AD5: Tỉ lệ (%) tương ứng với thời lượng dạy đơn vị kiến thức | AE5: Thời lượng giảng dạy đơn vị kiến thức (Tiết)
D6: Nhận biết | J6: Thông hiểu | P6: Vận dụng | V6: Vận dụng cao
D7: CHTL | E7: ĐỘ KHÓ | F7: CÂU | G7: CHTN | H7: ĐỘ KHÓ | I7: CÂU | J7: CHTL | K7: ĐỘ KHÓ | L7: CÂU | M7: CHTN | N7: ĐỘ KHÓ | O7: CÂU | P7: CHTL | Q7: ĐỘ KHÓ | R7: CÂU | S7: CHTN | T7: ĐỘ KHÓ | U7: CÂU | V7: CHTL | W7: ĐỘ KHÓ | X7: CÂU | Y7: CHTN | Z7: ĐỘ KHÓ | AA7: CÂU | AB7: CHTL | AC7: CHTN
A8: 1 | B8: Tích phân | C8: I.1 Tính chất | G8: 0.2 | H8: D | I8: 4 | AB8: =D8+J8+P8+V8 -> 0 | AC8: =G8+M8+S8+Y8 -> 0.2 | AD8: =AE8/$AE$22 -> 7% | AE8: 2
A9: 2 | C9: I.2. Tích phân bằng phương pháp đổi biến | J9: 1 | K9: TB | L9: 1 | M9: 0.2 | N9: TB | O9: 3 | AB9: =D9+J9+P9+V9 -> 1 | AC9: =G9+M9+S9+Y9 -> 0.2 | AD9: 10% | AE9: 3
A10: 3 | C10: I.3. Tích phân từng phần | S10: 0.2 | T10: TĐK | U10: 21 | AB10: 0 | AC10: 0.2 | AD10: 17% | AE10: 5
A11: 4 | C11: I.4. Ứng dụng | G11: 0.2 | H11: D | I11: 5 | Y11: 0.2 | Z11: K | AA11: 29 | AB11: 0 | AC11: 0.4 | AD11: 7% | AE11: 2
A12: 6 | B12: Hình học toạ độ | C12: II.1. Toạ độ | G12: 0.4 | H12: D | I12: 7,8 | AB12: 0 | AC12: 0.4 | AD12: 3% | AE12: 1
A13: 7 | C13: II.2. Khoảng cách | AB13: 0 | AC13: 0 | AD13: 3% | AE13: 1
A14: 8 | C14: II.3. Mặt phẳng | G14: 0.6 | H14: D | I14: 6,9,10 | M14: 0.4 | N14: TB | O14: 16,18 | AC14: 1 | AD14: 3% | AE14: 1
A15: 9 | C15: II.4. Mặt cầu | G15: 0.2 | H15: D | I15: 11 | AB15: 0 | AC15: 0.2 | AD15: 14% | AE15: 4
A16: 10 | C16: II.5. Đường thẳng | G16: 0.2 | H16: D | I16: 12 | M16: 0.2 | N16: TB | O16: 26 | S16: 0.6 | T16: TĐK | U16: 15,27,28 | AB16: 0 | AC16: 1 | AD16: 3% | AE16: 1
A17: 11 | C17: II.6. Kết hợp đường thẳng và mặt phẳng | J17: 1 | K17: TB | L17: 3 | M17: 0.2 | N17: TB | O17: 25 | S17: 0.6 | T17: TĐK | U17: 22,23,24 | V17: 1 | W17: K | X17: 4 | AB17: 2 | AC17: 0.8 | AD17: 10% | AE17: 3
A18: 14 | B18: Số phức | C18: III1. Tính chất của số phức | G18: 0.6 | H18: D | I18: 1,2,17 | S18: 0.2 | T18: TĐK | U18: 20 | AB18: 0 | AC18: 0.8 | AD18: 7% | AE18: 2
A19: 15 | C19: III.2. Các phép toán trên số phức | D19: 1 | E19: D | F19: 1 | G19: 0.6 | H19: D | I19: 13,14,19 | AB19: 1 | AC19: 0.6 | AD19: 7% | AE19: 2
A20: 16 | C20: III.3. Cực trị của số phức | Y20: 0.2 | Z20: K | AA20: 30 | AB20: 0 | AC20: 0.2 | AD20: 7% | AE20: 2
A21: 18
A22: Tổng điểm | D22: =SUM(D$8:D$21) -> 1 | G22: =SUM(G$8:G$21) -> 3 | J22: =SUM(J$8:J$21) -> 2 | M22: =SUM(M$8:M$21) -> 1 | P22: =SUM(P$8:P$21) -> 0 | S22: =SUM(S$8:S$21) -> 1.6 | V22: =SUM(V$8:V$21) -> 1 | Y22: =SUM(Y$8:Y$21) -> 0.4 | AB22: =SUM(AB$8:AB$21) -> 4 | AC22: =SUM(AC$8:AC$21) -> 6 | AD22: =SUM(AD$8:AD$21) -> 100% | AE22: =SUM(AE$8:AE$21) -> 29
A23: Tỉ lệ mức độ nhận biết (Quy định) | D23: 40% | J23: 30% | P23: 20% | V23: 10%
A24: Tỉ lệ độ khó (Quy định) | D24: 40% D | J24: 30%TB | P24: 20%TĐK | V24: 10%K
D25: Điểm | E25: SL | G25: Điểm | H25: SL | J25: Điểm | K25: SL | M25: Điểm | N25: SL | P25: Điểm | Q25: SL | S25: Điểm | T25: SL | V25: Điểm | W25: SL | Y25: Điểm | Z25: SL | AB25: Tổng điểm | AC25: Số lượng | AD25: Tỷ lệ | AF25: Tỏng điểm | AG25: Số lượng | AH25: Tỷ lệ
C26: Dễ (D) | D26: =SUMIF(E$8:E$21,"D",D$8:D$21) -> 1 | E26: =COUNTIF(E$8:E$21,"D") -> 1 | G26: =SUMIF(H$8:H$21,"D",G$8:G$21) -> 3 | H26: =COUNTIF(H$8:H$21,"D") -> 8 | J26: =SUMIF(K$8:K$21,"D",J$8:J$21) -> 0 | K26: =COUNTIF(K$8:K$21,"D") -> 0 | M26: =SUMIF(N$8:N$21,"D",M$8:M$21) -> 0 | N26: =COUNTIF(N$8:N$21,"D") -> 0 | P26: =SUMIF(Q$8:Q$21,"D",P$8:P$21) -> 0 | Q26: =COUNTIF(Q$8:Q$21,"D") -> 0 | S26: =SUMIF(T$8:T$21,"D",S$8:S$21) -> 0 | T26: =COUNTIF(T$8:T$21,"D") -> 0 | V26: =SUMIF(W$8:W$21,"D",V$8:V$21) -> 0 | W26: =COUNTIF(W$8:W$21,"D") -> 0 | Y26: =SUMIF(Z$8:Z$21,"D",Y$8:Y$21) -> 0 | Z26: =COUNTIF(Z$8:Z$21,"D") -> 0 | AB26: =D26+G26+J26+M26+P26+S26+V26+Y26 -> 4 | AC26: =E26+H26+K26+N26+Q26+T26+W26+Z26 -> 9 | AD26: =AB26/10 -> 40.00% | AE26: Nhận biết | AF26: =SUM(D26:D29,G26:G29) -> 4 | AG26: =SUM(E26:E29, H26:H29) -> 9 | AH26: =AF26/10 -> 40.00%
C27: Trung bình (TB) | D27: =SUMIF(E$8:E$21,"TB",D$8:D$21) -> 0 | E27: =COUNTIF(E$8:E$21,"TB") -> 0 | G27: =SUMIF(H$8:H$21,"TB",G$8:G$21) -> 0 | H27: =COUNTIF(H$8:H$21,"TB") -> 0 | J27: =SUMIF(K$8:K$21,"TB",J$8:J$21) -> 2 | K27: =COUNTIF(K$8:K$21,"TB") -> 2 | M27: =SUMIF(N$8:N$21,"TB",M$8:M$21) -> 1 | N27: =COUNTIF(N$8:N$21,"TB") -> 4 | P27: =SUMIF(Q$8:Q$21,"TB",P$8:P$21) -> 0 | Q27: =COUNTIF(Q$8:Q$21,"TB") -> 0 | S27: =SUMIF(T$8:T$21,"TB",S$8:S$21) -> 0 | T27: =COUNTIF(T$8:T$21,"TB") -> 0 | V27: =SUMIF(W$8:W$21,"TB",V$8:V$21) -> 0 | W27: =COUNTIF(W$8:W$21,"TB") -> 0 | Y27: =SUMIF(Z$8:Z$21,"TB",Y$8:Y$21) -> 0 | Z27: =COUNTIF(Z$8:Z$21,"TB") -> 0 | AB27: =D27+G27+J27+M27+P27+S27+V27+Y27 -> 3 | AC27: 6 | AD27: =AB27/10 -> 30.00% | AE27: Thông hiểu | AF27: =SUM(J26:J29,M26:M29) -> 3 | AG27: =SUM(K26:K29,N26:N29) -> 6 | AH27: =AF27/10 -> 30.00%
C28: Tương đối khó (TDK) | D28: =SUMIF(E$8:E$21,"TĐK",D$8:D$21) -> 0 | E28: =COUNTIF(E$8:E$21,"TĐK") -> 0 | G28: =SUMIF(H$8:H$21,"TĐK",G$8:G$21) -> 0 | H28: =COUNTIF(H$8:H$21,"TĐK") -> 0 | J28: =SUMIF(K$8:K$21,"TĐK",J$8:J$21) -> 0 | K28: =COUNTIF(K$8:K$21,"TĐK") -> 0 | M28: =SUMIF(N$8:N$21,"TĐK",M$8:M$21) -> 0 | N28: =COUNTIF(N$8:N$21,"TĐK") -> 0 | P28: =SUMIF(Q$8:Q$21,"TĐK",P$8:P$21) -> 0 | Q28: =COUNTIF(Q$8:Q$21,"TĐK") -> 0 | S28: =SUMIF(T$8:T$21,"TĐK",S$8:S$21) -> 1.6 | T28: =COUNTIF(T$8:T$21,"TĐK") -> 4 | V28: =SUMIF(W$8:W$21,"TĐK",V$8:V$21) -> 0 | W28: =COUNTIF(W$8:W$21,"TĐK") -> 0 | Y28: =SUMIF(Z$8:Z$21,"TĐK",Y$8:Y$21) -> 0 | Z28: =COUNTIF(Z$8:Z$21,"TĐK") -> 0 | AB28: 1.6 | AC28: 4 | AD28: 16.00% | AE28: Vận dụng | AF28: =SUM(P26:P29, S26:S29) -> 1.6 | AG28: =SUM(Q26:Q29, T26:T29) -> 4 | AH28: 16.00%
C29: Khó (K) | D29: =SUMIF(E$8:E$21,"K",D$8:D$21) -> 0 | E29: =COUNTIF(E$8:E$21,"K") -> 0 | G29: =SUMIF(H$8:H$21,"K",G$8:G$21) -> 0 | H29: =COUNTIF(H$8:H$21,"K") -> 0 | J29: =SUMIF(K$8:K$21,"K",J$8:J$21) -> 0 | K29: =COUNTIF(K$8:K$21,"K") -> 0 | M29: =SUMIF(N$8:N$21,"K",M$8:M$21) -> 0 | N29: =COUNTIF(N$8:N$21,"K") -> 0 | P29: =SUMIF(Q$8:Q$21,"K",P$8:P$21) -> 0 | Q29: =COUNTIF(Q$8:Q$21,"K") -> 0 | S29: =SUMIF(T$8:T$21,"K",S$8:S$21) -> 0 | T29: =COUNTIF(T$8:T$21,"K") -> 0 | V29: =SUMIF(W$8:W$21,"K",V$8:V$21) -> 1 | W29: =COUNTIF(W$8:W$21,"K") -> 1 | Y29: =SUMIF(Z$8:Z$21,"K",Y$8:Y$21) -> 0.4 | Z29: =COUNTIF(Z$8:Z$21,"K") -> 2 | AB29: 1.4 | AC29: 3 | AD29: 14.00% | AE29: Vận dụng cao | AF29: =SUM(V26:V29,Y26:Y29) -> 1.4 | AG29: =SUM(W26:W29,Z26:Z29) -> 3 | AH29: 14.00%
K31: Tỷ lệ độ khó | T31: Tỷ lệ Mức độ hiểu
J32: Dễ (D) | K32: =AD26 -> 40.00% | S32: Nhận biết | T32: =AH26 -> 40.00%
J33: Trung bình (TB) | K33: =AD27 -> 30.00% | S33: Thông hiểu | T33: =AH27 -> 30.00%
J34: Tương đối khó (TDK) | K34: 16.00% | S34: Vận dụng | T34: 16.00%
J35: Khó (K) | K35: 14.00% | S35: Vận dụng cao | T35: 14.00%
C37: 1- Độ khó (hoặc độ dễ): Công thức để tính độ khó (độ dễ) : Số học sinh làm đúng (đạt từ 90% với câu hỏi tự luận) P = ----------------------------- --------------------------------------------- x 100% Tổng số học sinh được kiểm tra Thang phân loại Độ khó (độ dễ) qui ước như sau : - Câu dễ: 70 đến 100 % học sinh trả lời đúng . - Câu tương đối khó (trung bình): 30 đến 70 % học sinh trả lời đúng . - Câu khó: 0 đến 30 % học sinh trả lời đúng . 2- Độ phân biệt: Phân chia học sinh thàn h 3 nhóm với tỉ lệ tương ứng như sau: - Nhóm HS Giỏi&Khá: 27% - Nhóm HS TB: 46% - Nhóm HS Yếu&Kém: 27% Công thức để tính độ phân biệt (dùng cho các câu hỏi trắc nghiệm): D = (Tỉ lệ học sinh Giỏi&Khá làm đúng - Tỉ lệ học sinh Yếu&kém làm đúng) Thang phân loại Độ phân biệt qui ước như sau : - D ≤ 0,19: độ phân biệt quá thấp, không sử để phân biệt, phân loại học sinh được. - 0,20 < D < 0,39: độ phân biệt trung bình, chất lượng câu hỏi tạm được - D ≥ 0,40: độ phân biệt cao, chất lượng câu hỏi cao | N37: THỐNG KÊ TỈ LỆ CÁC MỨC ĐỘ KHÓ CỦA ĐỀ
